[Event "1000GM Saint Louis 2022"]
[Site "Saint Louis"]
[Date "2022.07.20"]
[Round "3.2"]
[White "Belous, Vladimir"]
[Black "Abrahamyan, Tatev"]
[Result "1-0"]
[ECO "E59"]
[WhiteElo "2519"]
[BlackElo "2291"]
[Annotator "TA"]
[PlyCount "51"]
[EventDate "2022.07.20"]
[EventType "tourn"]
[EventCountry "USA"]
[SourceTitle "playchess.com"]
[Source "ChessBase"]
[SourceQuality "1"]
[TimeControl "5400+30"]

{[%evp 21,51,0,14,9,27,25,56,0,0,0,0,0,0,0,0,0,14,7,7,19,0,0,14,-119,0,16,51,30,436,427,453,283]} 1. d4 {[%emt 0:00:59]} Nf6 {[%emt 0:00:05]} 2. c4 {[%emt 0:00:05]} e6 {[%emt 0:00:04]} 3. Nc3 {[%emt 0:00:05]} Bb4 {[%emt 0:00:11]} 4. e3 {[%emt 0:00:05]} O-O {[%emt 0:00:40]} 5. Bd3 {[%emt 0:00:06]} c5 {[%emt 0:00:46]} 6. Nf3 {[%emt 0:02:23]} d5 {[%emt 0:00:32]} 7. O-O {[%emt 0:00:45]} Nc6 {[%emt 0:00:46]} 8. a3 {[%emt 0:01:13]} Bxc3 {[%emt 0:00:06]} 9. bxc3 {[%emt 0:00:03]} dxc4 {[%emt 0:00:07]} 10. Bxc4 {[%emt 0:00:06]} Qc7 {[%emt 0:00:07]} 11. Ba2 {[%emt 0:04:12] 11.Re1 is the recent fashion.} b6 {[%emt 0:10:17]} 12. Qe2 {[%emt 0:01:57] E59: Nimzo-Indian: Rubinstein: Main Line: 7...Nc6 8 a3 Bxc3 9 bxc3 dxc4.} Rd8 {[%emt 0:12:45]} 13. Bb2 {[%emt 0:03:12]} e5 {[%emt 0:03:24] [#]} 14. Rad1 $146 {[%emt 0:08:06]} (14. Ng5 $14 Bg4 15. f3) ({Predecessor:} 14. h3 h6 15. Rfd1 e4 16. Nd2 Bf5 17. Nf1 Qe7 18. Ng3 Bg6 19. Rd2 h5 20. Qb5 {0-1 (64) Cao Armillas,J (2174)-Sanchez Gonzalez,S (2286) Madrid 2011}) 14... Bg4 $1 $11 {[%emt 0:12:28]} 15. h3 $1 {[%emt 0:02:45]} Bh5 {[%emt 0:03:16]} 16. g4 $1 {[%emt 0:04:36]} Nxg4 {[%emt 0:05:58]} 17. hxg4 {[%emt 0:00:05]} Bxg4 {[%emt 0:00:02]} 18. Bb1 {[%emt 0:00:06] Black must now prevent Be4.} Rd6 {[%emt 0:09:14]} 19. dxc5 {[%emt 0:09:27]} ({Don't blunder} 19. dxe5 $2 Nxe5 20. Bxh7+ Kf8 $19) 19... Rf6 $132 {[%emt 0:08:02][%mdl 2048] [#] Black is fighting back} 20. Bxh7+ $1 {[%emt 0:00:00]} Kf8 $1 {[%emt 0:02:37]} 21. Be4 {[%emt 0:00:00][%cal Od1d6] Rd6! is the strong threat.} bxc5 {[%emt 0:00:05]} 22. a4 {[%emt 0:05:10] [#]} (22. Kg2 $11 Bxf3+ 23. Bxf3 Rg6+ 24. Bg4 (24. Kh1 Qe7 $11)) 22... Re8 {[%emt 0:02:30]} (22... Qc8 $1 $17 {And now ...Bh5 would win.} 23. Qd2 (23. Ba3 $2 Bh5 $19) 23... Bxf3 24. Bxf3 Rxf3) 23. Ba3 {[%emt 0:00:00][%cal Oe2d3]} Ne7 {[%emt 0:04:59]} 24. Rd2 {[%emt 0:07:26] Threatens to win with Rfd1.} Kg8 $2 {[%emt 0:04:02][%mdl 8192]} (24... Rh6 $1 $11) 25. Qb5 $18 {[%emt 0:01:35][%csl LRc5,LRe8][%cal Rb5e8]} Rc8 {[%emt 0:09:11]} 26. Nh2 {[%emt 0:02:22] Weighted Error Value: White=0.20 (precise) /Black=0.55} 1-0

[Event "1000GM Saint Louis 2022"]
[Site "Saint Louis"]
[Date "2022.07.20"]
[Round "3.3"]
[White "Mardov, Dimitar"]
[Black "Yu, Jennifer"]
[Result "1-0"]
[ECO "D12"]
[WhiteElo "2396"]
[BlackElo "2268"]
[Annotator "TA"]
[PlyCount "75"]
[EventDate "2022.07.20"]
[EventType "tourn"]
[EventCountry "USA"]
[SourceTitle "playchess.com"]
[Source "ChessBase"]
[SourceQuality "1"]
[TimeControl "5400+30"]

{[%evp 15,75,36,27,30,34,23,20,16,24,6,11,4,11,19,17,29,13,0,52,42,51,49,59,66,55,66,74,1,134,119,210,27,79,0,108,114,122,103,168,180,473,491,491,470,506,450,565,554,561,581,572,539,585,606,600,553,587,535,1153,1080,887,866]} 1. d4 {[%emt 0:00:16]} d5 {[%emt 0:00:38]} 2. c4 {[%emt 0:00:18]} c6 {[%emt 0:00:15]} 3. Nf3 {[%emt 0:00:25]} Nf6 {[%emt 0:00:15]} 4. e3 {[%emt 0:00:05]} Bf5 {[%emt 0:00:20]} 5. Nc3 {[%emt 0:00:05]} e6 {[%emt 0:00:05]} 6. Nh4 {[%emt 0:00:04]} Be4 {[%emt 0:00:17]} 7. f3 {[%emt 0:00:05]} Bg6 {[%emt 0:00:05]} 8. Qb3 {[%emt 0:00:06]} Qc7 {[%emt 0:00:05]} 9. Bd2 {[%emt 0:00:07] D12: Slav Defence: 3 Nf3 Nf6 4 e3 Bf5.} Be7 {[%emt 0:00:16]} 10. Nxg6 {[%emt 0:00:11]} hxg6 {[%emt 0:00:08]} 11. O-O-O {[%emt 0:00:08] The position is equal.} dxc4 {[%emt 0:00:56]} 12. Bxc4 {[%emt 0:00:08]} b5 {[%emt 0:00:04]} 13. Be2 {[%emt 0:00:05]} a6 {[%emt 0:00:29]} 14. Ne4 {[%emt 0:00:19]} Nbd7 {[%emt 0:11:04]} 15. Kb1 {[%emt 0:07:26]} Rc8 {[%emt 0:06:57]} 16. h4 {[%emt 0:09:28][%cal Bh2h4,Bh4h5][%mdl 32] [#]} Nxe4 $146 {[%emt 0:20:23]} ({Better is} 16... c5 $11) ({Predecessor:} 16... c5 17. Nxc5 Nxc5 18. dxc5 Qg3 19. Qa3 Qxg2 20. Qxa6 O-O 21. Qxb5 Rxc5 22. Qa6 Rb8 {0-1 (30) Donchenko,A (2583)-Bartel,M (2649) Biel 2016}) 17. fxe4 $14 {[%emt 0:00:06]} c5 {[%emt 0:00:01]} 18. h5 {[%emt 0:15:20] And now hxg6 would win.} g5 {[%emt 0:04:08]} 19. e5 {[%emt 0:05:46][%cal Oh5h6]} c4 {[%emt 0:08:46]} 20. Qc2 {[%emt 0:00:13][%cal Oh5h6]} b4 {[%emt 0:00:16]} 21. e4 {[%emt 0:13:55]} (21. Rc1 $16) 21... Nb6 {[%emt 0:02:36]} (21... O-O $11 {keeps the balance.}) 22. Be3 $16 {[%emt 0:00:48]} Qb8 {[%emt 0:26:21]} (22... O-O $16 23. h6 c3 24. hxg7 (24. Bxa6 b3 $16) 24... Kxg7) 23. Bg4 $2 {[%emt 0:17:15]} (23. d5 $18 Bc5 24. Bxc5 (24. Bxg5 Qxe5 25. Bc1 O-O $11) 24... Rxc5 25. dxe6 (25. d6 c3 $11)) 23... Nd7 $11 {[%emt 0:02:12] [#]} 24. Be2 {[%emt 0:02:45] White is more active.} (24. h6 $1 $16 {[%cal Rh6g7]} gxh6 25. Be2) 24... b3 {[%emt 0:08:21]} (24... Nb6 $1 $11 {remains equal.}) 25. axb3 $16 {[%emt 0:01:14]} cxb3 {[%emt 0:00:03]} 26. Qd3 $36 {[%emt 0:01:00][%mdl 2048] White is in control.} a5 {[%emt 0:05:03]} (26... Rc2 $16) 27. Qb5 $18 {[%emt 0:02:15]} Qa8 $2 {[%emt 0:01:20]} (27... Qa7 28. d5 (28. Qxb3 Rb8 $16) 28... Qxe3 29. dxe6 O-O 30. Rxd7 (30. exd7 Rc5 $16) 30... Rc5) 28. d5 {[%emt 0:01:26] White is clearly winning.} Rb8 {[%emt 0:01:45]} 29. Qc6 {[%emt 0:05:24]} ({Don't play} 29. Qa4 Rb4 30. Qc6 Qb7) 29... exd5 {[%emt 0:00:42]} 30. exd5 {[%emt 0:01:50][%cal Be4d5,Bd5c6,Bc6c7][%mdl 32]} Rh6 {[%emt 0:00:12]} 31. Qxa8 {[%emt 0:06:19]} Rxa8 {[%emt 0:00:04]} 32. Bb5 {[%emt 0:01:30] This bishop pair is nice.} Rb8 {[%emt 0:00:04]} 33. Bc6 {[%emt 0:00:27]} Rxc6 {[%emt 0:01:19]} 34. dxc6 {[%emt 0:00:06]} Nxe5 {[%emt 0:00:02]} 35. h6 {[%emt 0:01:10]} gxh6 {[%emt 0:00:47]} 36. Rxh6 {[%emt 0:00:22]} Bf8 {[%emt 0:00:52]} 37. Bxg5 {[%emt 0:02:34] Threatening mate with c7.} Rc8 {[%emt 0:00:08] [#]} 38. c7 $1 {[%emt 0:01:42] Weighted Error Value: White=0.22 (precise) /Black=0.45} 1-0

[Event "1000GM Saint Louis 2022"]
[Site "Saint Louis"]
[Date "2022.07.20"]
[Round "3.4"]
[White "Gauri, Shankar"]
[Black "Chandra, Akshat"]
[Result "1/2-1/2"]
[ECO "B07"]
[WhiteElo "2376"]
[BlackElo "2485"]
[Annotator "TA"]
[PlyCount "111"]
[EventDate "2022.07.20"]
[EventType "tourn"]
[EventCountry "USA"]
[SourceTitle "playchess.com"]
[Source "ChessBase"]
[SourceQuality "1"]
[TimeControl "5400+30"]

{[%evp 16,111,0,8,7,16,7,10,19,13,18,15,12,-25,24,28,65,62,62,48,97,91,87,54,73,58,89,72,82,74,74,71,75,65,101,42,36,38,60,61,58,64,50,9,8,0,47,0,0,0,10,0,0,0,10,12,10,10,10,10,10,12,10,10,12,12,16,14,101,101,190,170,224,232,250,248,224,181,202,228,430,412,604,577,371,400,477,468,456,424,397,0,0,0,349,0,0,0]} 1. d4 {[%emt 0:06:41]} Nf6 {[%emt 0:00:12]} 2. Nf3 {[%emt 0:00:21]} g6 {[%emt 0:00:28]} 3. Nbd2 {[%emt 0:01:27]} Bg7 {[%emt 0:08:12]} 4. e4 {[%emt 0:00:14]} d6 {[%emt 0:00:04]} 5. Bb5+ {[%emt 0:02:36]} c6 {[%emt 0:04:03]} 6. Bd3 {[%emt 0:01:11]} O-O {[%emt 0:00:15]} 7. O-O {[%emt 0:00:21]} c5 {[%emt 0:00:18]} 8. c3 {[%emt 0:09:05]} cxd4 {[%emt 0:00:52] 8...Nc6 deserves study.} 9. cxd4 {[%emt 0:00:09]} e5 {[%emt 0:00:09] B07: Pirc Defence: Miscellaneous Systems.} 10. d5 {[%emt 0:00:42]} a5 {[%emt 0:01:18]} 11. Nb1 {[%emt 0:05:22]} Nbd7 {[%emt 0:02:26]} 12. Nc3 {[%emt 0:01:18]} Nc5 {[%emt 0:08:31]} 13. Be3 {[%emt 0:06:04] [#]} b6 $146 {[%emt 0:03:44]} ({Predecessor:} 13... Nxd3 14. Qxd3 Ng4 15. Rac1 Bd7 16. a4 f5 17. Bg5 Qb6 18. Nd2 Rac8 19. Nc4 Qa6 20. b3 Nf6 {1-0 (62) Caruana,F (2765)-Shevchenko,K (2574) Riga 2021}) 14. Re1 {[%emt 0:22:06]} Nh5 {[%emt 0:08:24]} (14... Nxd3 $142 15. Qxd3 Ba6) 15. Bf1 $11 {[%emt 0:07:08]} Bd7 {[%emt 0:14:54]} 16. Nd2 {[%emt 0:07:56]} Be8 {[%emt 0:00:46]} 17. Bb5 {[%emt 0:06:35]} Rc8 {[%emt 0:11:22]} (17... Bxb5 $14 18. Nxb5 Nf6) 18. Bxe8 {[%emt 0:04:33]} Rxe8 {[%emt 0:00:11]} 19. Nb3 {[%emt 0:04:16]} Nf6 {[%emt 0:10:25]} 20. f3 {[%emt 0:05:08]} h5 {[%emt 0:01:47]} 21. Bg5 {[%emt 0:03:05]} Qd7 {[%emt 0:00:28]} 22. Qe2 {[%emt 0:00:43]} Na4 {[%emt 0:05:02]} 23. Nxa4 {[%emt 0:02:19]} Qxa4 {[%emt 0:00:00]} 24. Be3 {[%emt 0:00:35]} Nd7 {[%emt 0:01:49]} 25. Rec1 {[%emt 0:00:03]} (25. Nd2 $1 $16) 25... Rxc1+ $14 {[%emt 0:02:29]} 26. Nxc1 {[%emt 0:00:46][%cal Bb3c1,Bc1d3,Bd3f4][%mdl 32]} f5 {[%emt 0:05:54]} 27. b3 $1 {[%emt 0:00:23]} Qb4 {[%emt 0:00:12]} 28. Nd3 {[%emt 0:00:59]} Qb5 {[%emt 0:00:02] [#]} 29. Nf4 $1 {[%emt 0:00:55]} Qxe2 {[%emt 0:01:22]} 30. Nxe2 {[%emt 0:00:02]} Nc5 {[%emt 0:07:46]} (30... b5 $11 {is more appropriate.}) 31. Rc1 {[%emt 0:02:04]} (31. Nc3 $14) 31... fxe4 $11 {[%emt 0:00:51]} 32. fxe4 {[%emt 0:00:03]} Kh7 {[%emt 0:00:57]} 33. Bxc5 {[%emt 0:01:16]} bxc5 {[%emt 0:00:03][%mdl 4096] Endgame KRB-KRN} 34. Rf1 {[%emt 0:00:33]} Bh6 {[%emt 0:01:29]} 35. Rf7+ {[%emt 0:00:21]} Kg8 {[%emt 0:00:03]} 36. Rf6 {[%emt 0:00:19][%csl LRd6,LRg6]} Kg7 {[%emt 0:00:01]} 37. Rxd6 {[%emt 0:00:45] Threatening Kf2.} Rf8 {[%emt 0:00:05]} 38. Rd7+ {[%emt 0:00:16]} Kg8 $1 {[%emt 0:00:12] ( -> ...Be3+)} 39. h4 $1 {[%emt 0:00:21] Strongly threatening Rc7.} Be3+ $1 {[%emt 0:00:06]} 40. Kh2 {[%emt 0:00:45] aiming for Rc7.} Rf2 {[%emt 0:00:02]} 41. Ng1 {[%emt 0:00:43]} Rf1 {[%emt 0:01:46]} (41... Rxa2 $11 {keeps the balance.} 42. Nf3 a4) 42. Nh3 $1 $16 {[%emt 0:00:18]} Kf8 {[%emt 0:01:32]} (42... Ra1 $16 {might work better.}) 43. Ra7 $18 {[%emt 0:00:15]} c4 {[%emt 0:00:52]} (43... Rc1 $142 44. Rxa5 c4) 44. Ra8+ {[%emt 0:00:01]} (44. Rxa5 c3 45. Ra8+ Ke7 $14) 44... Ke7 {[%emt 0:00:03]} 45. bxc4 {[%emt 0:00:04]} Rc1 {[%emt 0:00:03]} 46. Rc8 {[%emt 0:01:31]} ({Don't take} 46. Rxa5 $6 Rxc4 47. Ng5 Bf4+ 48. Kg1 Bxg5 49. hxg5 Rxe4 $16) 46... Kd7 {[%emt 0:01:10]} 47. Rc6 {[%emt 0:00:08]} a4 $2 {[%emt 0:00:04] [#]} (47... Rc2 48. a4 (48. Rxg6 Rxa2 49. Ng5 Bf4+ 50. Kh3 Ra3+ 51. Nf3 Rc3 $14) 48... Rc1) 48. Ng5 $1 {[%emt 0:01:08]} Bf4+ {[%emt 0:00:48]} (48... Bg1+ $142 49. Kg3 Bd4 50. Rxg6 Rxc4 51. Rg7+ Kd6 52. Nf7+ Kc5) 49. g3 {[%emt 0:00:02]} Rc2+ {[%emt 0:00:04]} 50. Kh3 {[%emt 0:00:18]} Rc3 {[%emt 0:00:01]} 51. Ne6 {[%emt 0:00:36]} Rxg3+ {[%emt 0:01:09]} 52. Kh2 {[%emt 0:00:01]} Rg4+ {[%emt 0:01:05]} 53. Kh3 {[%emt 0:01:06] And now Rc7+ would win.} Rg3+ {[%emt 0:00:02]} 54. Kh2 {[%emt 0:00:03]} Rg4+ $1 {[%emt 0:00:01] [#]} 55. Kh3 $2 {[%emt 0:01:29]} (55. Kh1 $1 $18 {White wants to mate with Rc7+.} Ke7 56. c5 (56. Rc7+ Kf6 $16)) 55... Rg3+ $11 {[%emt 0:00:05]} 56. Kh2 {[%emt 0:00:03] Weighted Error Value: White=0.25 (precise) /Black=0.21 (precise)} 1/2-1/2

[Event "1000GM Saint Louis 2022"]
[Site "Saint Louis"]
[Date "2022.07.20"]
[Round "3.5"]
[White "Dragun, Kamil"]
[Black "Kretchetov, Alexandre"]
[Result "1-0"]
[ECO "C79"]
[WhiteElo "2563"]
[BlackElo "2219"]
[Annotator "TA"]
[PlyCount "107"]
[EventDate "2022.07.20"]
[EventType "tourn"]
[EventCountry "USA"]
[SourceTitle "playchess.com"]
[Source "ChessBase"]
[SourceQuality "1"]
[TimeControl "5400+30"]

{[%evp 15,107,37,40,25,16,15,13,24,33,33,50,43,75,77,97,85,127,87,91,89,169,72,83,47,35,39,52,50,50,54,45,50,58,43,46,41,41,29,52,31,54,38,43,13,46,15,11,-41,-39,-113,-111,-104,-102,-113,-47,-52,-39,-29,-33,-31,-45,-35,0,0,0,0,0,0,0,0,0,0,168,165,157,129,169,160,159,47,60,61,60,60,53,0,0,0,4,0,0,8,623,614]} 1. e4 {[%emt 0:00:19]} e5 {[%emt 0:00:21]} 2. Nf3 {[%emt 0:00:15]} Nc6 {[%emt 0:00:05]} 3. Bb5 {[%emt 0:00:07]} a6 {[%emt 0:00:05]} 4. Ba4 {[%emt 0:00:25]} d6 {[%emt 0:00:10]} 5. c3 {[%emt 0:00:09]} g6 {[%emt 0:00:09]} 6. d4 {[%emt 0:00:11]} Bd7 {[%emt 0:00:09]} 7. O-O {[%emt 0:00:16]} Bg7 {[%emt 0:00:03]} 8. Re1 {[%emt 0:00:13]} Nf6 {[%emt 0:00:07][%cal Bg8f6,Bf6h5,Bh5f4][%mdl 32] now scores much better than the old 8...Nge7.} 9. h3 {[%emt 0:00:09] C79: Ruy Lopez: Steinitz-type lines with 3...a6 4 Ba4 Nf6 5 0-0 d6.} O-O {[%emt 0:00:14]} 10. Bc2 {[%emt 0:00:33]} Re8 {[%emt 0:01:20]} 11. Nbd2 {[%emt 0:00:58] The position is equal.} h6 {[%emt 0:09:45]} 12. Nf1 {[%emt 0:01:24]} Nh5 {[%emt 0:04:00]} 13. Be3 {[%emt 0:00:56]} Qe7 {[%emt 0:02:16]} 14. Qd2 {[%emt 0:15:11]} g5 {[%emt 0:05:40]} 15. Ng3 {[%emt 0:07:45]} Nf4 {[%emt 0:00:11]} 16. Nf5 {[%emt 0:00:38]} Bxf5 {[%emt 0:02:13]} 17. exf5 {[%emt 0:00:24] [#]} Rad8 $146 {[%emt 0:05:27]} (17... Qf6 $16) ({Predecessor:} 17... Qf6 18. d5 Ne7 19. Be4 Nxf5 20. Qc2 Ne7 21. Rad1 Neg6 22. Kh2 Nf8 23. g3 N4g6 {0-1 (35) Asante Debesai,Z (1712)-Makoto,R (2373) Casablanca 2019}) 18. Bxf4 {[%emt 0:08:03]} (18. d5 $18 {and White stays clearly on top.} Na5 19. Bxf4 gxf4 20. Qe2) 18... gxf4 $16 {[%emt 0:00:15]} 19. dxe5 {[%emt 0:00:04]} dxe5 {[%emt 0:12:48]} 20. Qe2 {[%emt 0:00:12]} Nb8 {[%emt 0:00:05]} 21. Qe4 {[%emt 0:08:16]} (21. Qc4 {is more complex.} c6 22. Re2 Qc7 23. f6) 21... c6 {[%emt 0:01:23]} 22. Re2 {[%emt 0:00:06]} Nd7 {[%emt 0:04:23]} 23. Rae1 {[%emt 0:00:06][%cal Oe4f4]} Kf8 {[%emt 0:04:06]} 24. a4 {[%emt 0:09:34]} Qc5 {[%emt 0:04:00]} 25. Nd2 {[%emt 0:15:23]} Nf6 {[%emt 0:01:55]} 26. Qc4 {[%emt 0:00:31]} Qd6 {[%emt 0:03:10]} 27. a5 {[%emt 0:03:44]} Rd7 {[%emt 0:02:28]} 28. Nf3 {[%emt 0:01:47][%cal Rf3e5]} Rde7 {[%emt 0:02:34]} 29. Be4 {[%emt 0:02:52]} Kg8 {[%emt 0:12:22]} 30. b4 {[%emt 0:01:19]} Rd8 {[%emt 0:01:11]} 31. Bc2 {[%emt 0:01:54]} (31. Nd2 $11) 31... Qd5 $1 $15 {[%emt 0:01:35]} 32. Bb3 {[%emt 0:08:29]} ({White should play} 32. Qxd5 $15 Nxd5 33. Re4) 32... Qxc4 $17 {[%emt 0:05:21]} 33. Bxc4 {[%emt 0:00:02]} e4 {[%emt 0:00:23]} 34. Nd2 {[%emt 0:00:17][%cal Rd2e4]} e3 {[%emt 0:05:08]} (34... Rde8 $17 35. Nb3 Nh5) 35. fxe3 $15 {[%emt 0:01:17]} Rxe3 {[%emt 0:02:54]} 36. Rxe3 {[%emt 0:04:23]} fxe3 {[%emt 0:00:05]} 37. Nf1 {[%emt 0:02:09]} Nd5 {[%emt 0:05:00]} 38. Bxd5 {[%emt 0:00:18]} Rxd5 {[%emt 0:00:41]} 39. Rxe3 {[%emt 0:00:24]} Rxf5 {[%emt 0:00:16][%mdl 4096] Endgame KRB-KRN} 40. Ng3 {[%emt 0:01:29]} Rd5 {[%emt 0:00:39]} 41. Re8+ {[%emt 0:02:37]} Kh7 {[%emt 0:00:05]} 42. Re7 {[%emt 0:00:02][%csl LRb7,LRf7]} Kg6 {[%emt 0:00:30]} 43. Ne2 {[%emt 0:00:29] Hoping for Nf4+.} Re5 $2 {[%emt 0:00:49]} (43... Rb5 $1 $11) 44. Nf4+ $18 {[%emt 0:00:23]} Kg5 {[%emt 0:02:27]} 45. Rxf7 {[%emt 0:00:20] White is more active.} Re1+ {[%emt 0:00:15][%mdl 64] [#] Discovered Attack} 46. Kf2 {[%emt 0:00:10]} Bxc3 {[%emt 0:00:10]} 47. Nd3 {[%emt 0:03:09]} (47. h4+ $1 $16 Kxh4 48. Ne2) 47... Rd1 {[%emt 0:01:40]} 48. Ke3 {[%emt 0:00:01]} Rg1 {[%emt 0:01:24]} 49. Rxb7 {[%emt 0:00:45] [#] Rb6 is the strong threat.} Rxg2 {[%emt 0:00:06]} 50. Rb6 {[%emt 0:00:14]} (50. Nc5 $14 Rg3+ 51. Ke2 Rxh3 52. Nxa6) 50... Rg3+ $11 {[%emt 0:00:31]} 51. Ke2 {[%emt 0:00:53]} Rxh3 {[%emt 0:00:37]} 52. Rxc6 {[%emt 0:00:08]} Rh2+ {[%emt 0:00:11]} 53. Kf1 {[%emt 0:00:22]} Rd2 $2 {[%emt 0:00:25][%mdl 8192]} 54. Rxc3 {[%emt 0:00:08] Weighted Error Value: White=0.16 (very precise) /Black=0.26 (precise)} 1-0